[Event "European Online Club-ch-C 2021"]
[Site "Online"]
[Date "2021.03.27"]
[Round "5.8"]
[White "Kollars, Dmitrij"]
[Black "Alvarez Fernandez, Enrique"]
[Result "1-0"]
[ECO "D15"]
[WhiteElo "2598"]
[BlackElo "2349"]
[Annotator "ChessBase"]
[PlyCount "115"]
[EventDate "2021.03.27"]
[EventType "team-tourn"]
[EventCountry "NET"]
[SourceTitle "playchess.com"]
[Source "ChessBase"]
[SourceQuality "1"]
[TimeControl "900+5"]

1. d4 {[%emt 0:00:00]} d5 {[%emt 0:00:07]} 2. c4 {[%emt 0:01:33]} c6 {[%emt 0:00:06]} 3. Nf3 {[%emt 0:00:07]} Nf6 {[%emt 0:00:06]} 4. Nc3 {[%emt 0:00:02]} dxc4 {[%emt 0:00:07]} 5. e4 {[%emt 0:00:11]} b5 {[%emt 0:00:20]} 6. Be2 {[%emt 0:00:08]} e6 {[%emt 0:01:05]} 7. O-O {[%emt 0:00:12]} Be7 {[%emt 0:02:11]} 8. a4 {[%emt 0:00:04]} b4 {[%emt 0:00:24]} 9. e5 {[%emt 0:00:02]} bxc3 {[%emt 0:01:50]} 10. exf6 {[%emt 0:00:05]} Bxf6 {[%emt 0:00:31]} 11. bxc3 {[%emt 0:00:03]} O-O {[%emt 0:00:18]} 12. Ne5 {[%emt 0:01:47]} Ba6 {[%emt 0:01:54]} 13. Bf3 {[%emt 0:01:46]} Qa5 {[%emt 0:02:06]} 14. Ba3 {[%emt 0:01:31]} Rd8 {[%emt 0:00:49]} 15. Qe1 {[%emt 0:01:01]} Qc7 {[%emt 0:01:17]} 16. Rb1 {[%emt 0:00:52]} Bb7 {[%emt 0:01:03]} 17. Qe3 {[%emt 0:02:38]} Nd7 {[%emt 0:00:53]} 18. Ng4 {[%emt 0:01:57]} Rab8 {[%emt 0:00:38]} 19. Be4 {[%emt 0:00:29]} h5 {[%emt 0:00:12]} 20. Qh3 {[%emt 0:00:17]} Qf4 {[%emt 0:00:13]} 21. Nxf6+ {[%emt 0:00:15]} Nxf6 {[%emt 0:00:04]} 22. Bf3 {[%emt 0:00:00]} Ba8 {[%emt 0:00:16]} 23. Bc1 {[%emt 0:01:21]} Qf5 {[%emt 0:00:12]} 24. Qxf5 {[%emt 0:00:02]} exf5 {[%emt 0:00:02]} 25. Bg5 {[%emt 0:00:01]} c5 {[%emt 0:00:11]} 26. Bxf6 {[%emt 0:00:11]} gxf6 {[%emt 0:00:03]} 27. dxc5 {[%emt 0:00:32]} Bxf3 {[%emt 0:00:04]} 28. gxf3 {[%emt 0:00:00]} Rbc8 {[%emt 0:00:07]} 29. Rb5 {[%emt 0:00:03]} Rd5 {[%emt 0:00:04]} 30. Ra5 {[%emt 0:00:06]} Rc7 {[%emt 0:00:05]} 31. Ra6 {[%emt 0:00:04]} Kg7 {[%emt 0:00:04]} 32. Kh1 {[%emt 0:00:08]} f4 {[%emt 0:00:06]} 33. h4 {[%emt 0:00:02]} Rdxc5 {[%emt 0:00:06]} 34. Rg1+ {[%emt 0:00:02]} Kf8 {[%emt 0:00:02]} 35. Rxf6 {[%emt 0:00:01]} R7c6 {[%emt 0:00:08]} 36. Rxf4 {[%emt 0:00:02]} Ra6 {[%emt 0:00:02]} 37. Rb1 {[%emt 0:00:10]} Rb6 {[%emt 0:00:12]} 38. Rd1 {[%emt 0:00:05]} Ra6 {[%emt 0:00:05]} 39. Rd7 {[%emt 0:00:04]} f6 {[%emt 0:00:03]} 40. Rb7 {[%emt 0:00:15]} Rxa4 {[%emt 0:00:06]} 41. Rd4 {[%emt 0:00:01]} Re5 {[%emt 0:00:06]} 42. Rdd7 {[%emt 0:00:07]} Ra1+ {[%emt 0:00:03]} 43. Kg2 {[%emt 0:00:02]} a5 {[%emt 0:00:06]} 44. Rf7+ {[%emt 0:00:02]} Kg8 {[%emt 0:00:02]} 45. Rg7+ {[%emt 0:00:02]} Kh8 {[%emt 0:00:05]} 46. Rgf7 {[%emt 0:00:09]} Re8 {[%emt 0:00:04]} 47. Ra7 {[%emt 0:00:05]} Rg8+ {[%emt 0:00:04]} 48. Kh2 {[%emt 0:00:02]} Rgg1 {[%emt 0:00:03]} 49. Rf8+ {[%emt 0:00:01]} Rg8 {[%emt 0:00:05]} 50. Rxf6 {[%emt 0:00:00]} Rgg1 {[%emt 0:00:14]} 51. Rf8+ {[%emt 0:00:02]} Rg8 {[%emt 0:00:02]} 52. Rf5 {[%emt 0:00:00]} Rgg1 {[%emt 0:00:05]} 53. Rxh5+ {[%emt 0:00:06]} Kg8 {[%emt 0:00:02]} 54. Rg5+ {[%emt 0:00:00]} Rxg5 {[%emt 0:00:02]} 55. hxg5 {[%emt 0:00:00]} a4 {[%emt 0:00:10]} 56. Kg3 {[%emt 0:00:24]} a3 {[%emt 0:00:05]} 57. Kf4 {[%emt 0:00:02]} a2 {[%emt 0:00:02]} 58. Kf5 {[%emt 0:00:04]} 1-0

[Event "European Online Club-ch-C 2021"]
[Site "Online"]
[Date "2021.03.27"]
[Round "5.9"]
[White "Babula, Vlastimil"]
[Black "Fedoseev, Vladimir"]
[Result "1-0"]
[ECO "E92"]
[WhiteElo "2559"]
[BlackElo "2687"]
[Annotator "ChessBase"]
[PlyCount "65"]
[EventDate "2021.03.27"]
[EventType "team-tourn"]
[EventCountry "NET"]
[SourceTitle "playchess.com"]
[Source "ChessBase"]
[SourceQuality "1"]
[TimeControl "900+5"]

1. d4 {[%emt 0:00:00]} Nf6 {[%emt 0:00:14]} 2. c4 {[%emt 0:00:03]} g6 {[%emt 0:00:02]} 3. Nc3 {[%emt 0:00:04]} Bg7 {[%emt 0:00:01]} 4. e4 {[%emt 0:00:02]} d6 {[%emt 0:00:02]} 5. Nf3 {[%emt 0:00:04]} O-O {[%emt 0:00:01]} 6. Be2 {[%emt 0:00:02]} e5 {[%emt 0:00:37]} 7. d5 {[%emt 0:00:08]} Na6 {[%emt 0:00:42]} 8. Nd2 {[%emt 0:00:14]} Bh6 {[%emt 0:03:08]} 9. Nb3 {[%emt 0:00:20]} Bxc1 {[%emt 0:00:18]} 10. Rxc1 {[%emt 0:00:56]} Qe7 {[%emt 0:01:24]} 11. O-O {[%emt 0:00:47]} Kg7 {[%emt 0:00:07]} 12. Qd2 {[%emt 0:00:37]} Bg4 {[%emt 0:00:05]} 13. Na5 {[%emt 0:02:39]} Bxe2 {[%emt 0:03:16]} 14. Qxe2 {[%emt 0:00:14]} b6 {[%emt 0:00:09]} 15. Nc6 {[%emt 0:00:13]} Qd7 {[%emt 0:00:05]} 16. f4 {[%emt 0:01:21]} exf4 {[%emt 0:00:34]} 17. Rxf4 {[%emt 0:00:36]} Nb8 {[%emt 0:01:04]} 18. Rcf1 {[%emt 0:01:21]} Nh5 {[%emt 0:00:12]} 19. R4f2 {[%emt 0:00:05]} Kg8 {[%emt 0:00:02]} 20. Nd4 {[%emt 0:00:41]} Ng7 {[%emt 0:00:16]} 21. e5 {[%emt 0:02:17]} dxe5 {[%emt 0:00:08]} 22. Qxe5 {[%emt 0:00:06]} f5 {[%emt 0:00:02]} 23. g4 {[%emt 0:00:33]} c5 {[%emt 0:00:29]} 24. Ne6 {[%emt 0:00:23]} Nxe6 {[%emt 0:00:14]} 25. dxe6 {[%emt 0:00:17]} Nc6 {[%emt 0:00:02]} 26. Qd5 {[%emt 0:00:31]} Qe8 {[%emt 0:00:05]} 27. gxf5 {[%emt 0:00:12]} Ne7 {[%emt 0:00:07]} 28. Qg2 {[%emt 0:00:04]} Qc6 {[%emt 0:01:17]} 29. f6 {[%emt 0:00:15]} Qxg2+ {[%emt 0:00:19]} 30. Kxg2 {[%emt 0:00:05]} Nf5 {[%emt 0:00:07]} 31. Nd5 {[%emt 0:00:06]} Rfd8 {[%emt 0:00:20]} 32. Rxf5 {[%emt 0:00:15]} gxf5 {[%emt 0:00:03]} 33. Rxf5 {[%emt 0:00:02]} 1-0

[Event "European Online Club-ch-C 2021"]
[Site "Online"]
[Date "2021.03.27"]
[Round "5.11"]
[White "Reuker, Jari"]
[Black "Esipenko, Andrey"]
[Result "0-1"]
[ECO "A28"]
[WhiteElo "2423"]
[BlackElo "2677"]
[Annotator "ChessBase"]
[PlyCount "116"]
[EventDate "2021.03.27"]
[EventType "team-tourn"]
[EventCountry "NET"]
[SourceTitle "playchess.com"]
[Source "ChessBase"]
[SourceQuality "1"]
[TimeControl "900+5"]

1. c4 {[%emt 0:00:00]} Nf6 {[%emt 0:02:16]} 2. Nc3 {[%emt 0:00:04]} e5 {[%emt 0:00:16]} 3. Nf3 {[%emt 0:01:13]} Nc6 {[%emt 0:00:04]} 4. e4 {[%emt 0:00:01]} Bb4 {[%emt 0:00:06]} 5. d3 {[%emt 0:00:02]} d6 {[%emt 0:00:04]} 6. Be2 {[%emt 0:00:06]} a5 {[%emt 0:00:06]} 7. O-O {[%emt 0:00:15]} Bc5 {[%emt 0:00:02]} 8. Be3 {[%emt 0:00:28]} Bxe3 {[%emt 0:00:58]} 9. fxe3 {[%emt 0:00:00]} O-O {[%emt 0:00:04]} 10. Nd5 {[%emt 0:01:53]} Nxd5 {[%emt 0:01:03]} 11. cxd5 {[%emt 0:01:33]} Ne7 {[%emt 0:00:15]} 12. Rc1 {[%emt 0:00:28]} c6 {[%emt 0:00:24]} 13. dxc6 {[%emt 0:00:55]} bxc6 {[%emt 0:01:22]} 14. d4 {[%emt 0:02:28]} exd4 {[%emt 0:00:12]} 15. exd4 {[%emt 0:00:03]} h6 {[%emt 0:00:14]} 16. Qd2 {[%emt 0:00:25]} Be6 {[%emt 0:00:10]} 17. Bc4 {[%emt 0:00:32]} Qd7 {[%emt 0:00:46]} 18. Kh1 {[%emt 0:00:45]} a4 {[%emt 0:00:12]} 19. d5 {[%emt 0:01:17]} cxd5 {[%emt 0:00:14]} 20. exd5 {[%emt 0:00:02]} Bf5 {[%emt 0:00:22]} 21. Nd4 {[%emt 0:00:02]} Bg6 {[%emt 0:00:51]} 22. Bb5 {[%emt 0:00:28]} Qa7 {[%emt 0:00:35]} 23. Bc6 {[%emt 0:00:46]} Rad8 {[%emt 0:00:44]} 24. Rc4 {[%emt 0:00:58]} Rb8 {[%emt 0:00:53]} 25. Rxa4 {[%emt 0:00:40]} Qb6 {[%emt 0:00:03]} 26. b3 {[%emt 0:00:13]} Be4 {[%emt 0:00:20]} 27. Qe3 {[%emt 0:00:48]} Bxd5 {[%emt 0:00:25]} 28. Qxe7 {[%emt 0:00:11]} Bxc6 {[%emt 0:00:02]} 29. Nxc6 {[%emt 0:00:10]} Qxc6 {[%emt 0:00:00]} 30. Qe2 {[%emt 0:00:10]} Rb5 {[%emt 0:00:17]} 31. Rc4 {[%emt 0:00:05]} Qa8 {[%emt 0:00:07]} 32. Rc7 {[%emt 0:00:17]} Re5 {[%emt 0:00:28]} 33. Qf2 {[%emt 0:00:04]} Qd5 {[%emt 0:00:01]} 34. h3 {[%emt 0:00:08]} Qe6 {[%emt 0:00:28]} 35. Rc2 {[%emt 0:00:14]} d5 {[%emt 0:00:12]} 36. Rd2 {[%emt 0:00:07]} Rc8 {[%emt 0:00:01]} 37. b4 {[%emt 0:00:06]} Rc3 {[%emt 0:00:29]} 38. Kh2 {[%emt 0:00:02]} Rh5 {[%emt 0:01:07]} 39. Qf4 {[%emt 0:00:02]} Rcxh3+ {[%emt 0:00:36]} 40. gxh3 {[%emt 0:00:00]} Qxh3+ {[%emt 0:00:01]} 41. Kg1 {[%emt 0:00:02]} Rg5+ {[%emt 0:00:02]} 42. Kf2 {[%emt 0:00:16]} Rf5 {[%emt 0:00:02]} 43. Qxf5 {[%emt 0:00:01]} Qxf5+ {[%emt 0:00:03]} 44. Ke2 {[%emt 0:00:13]} Qe4+ {[%emt 0:00:02]} 45. Kf2 {[%emt 0:00:02]} Qxb4 {[%emt 0:00:01]} 46. Rfd1 {[%emt 0:00:01]} Qa3 {[%emt 0:00:07]} 47. Re1 {[%emt 0:00:11]} h5 {[%emt 0:00:23]} 48. Re3 {[%emt 0:00:03]} Qd6 {[%emt 0:00:01]} 49. Red3 {[%emt 0:00:02]} h4 {[%emt 0:00:02]} 50. Kg2 {[%emt 0:00:04]} g5 {[%emt 0:00:06]} 51. Rxd5 {[%emt 0:00:14]} Qg3+ {[%emt 0:00:03]} 52. Kh1 {[%emt 0:00:02]} Qf3+ {[%emt 0:00:03]} 53. Kh2 {[%emt 0:00:06]} g4 {[%emt 0:00:02]} 54. Rg5+ {[%emt 0:00:02]} Kf8 {[%emt 0:00:03]} 55. Rd8+ {[%emt 0:00:10]} Ke7 {[%emt 0:00:02]} 56. Rgg8 {[%emt 0:00:02]} Qf2+ {[%emt 0:00:14]} 57. Kh1 {[%emt 0:00:03]} g3 {[%emt 0:00:05]} 58. Rde8+ {[%emt 0:00:05]} Kf6 {[%emt 0:00:02]} 0-1

[Event "European Online Club-ch-C 2021"]
[Site "Online"]
[Date "2021.03.27"]
[Round "5.12"]
[White "Shimanov, Aleksandr"]
[Black "Colbow, Collin"]
[Result "1-0"]
[ECO "A44"]
[WhiteElo "2597"]
[BlackElo "2339"]
[Annotator "ChessBase"]
[PlyCount "61"]
[EventDate "2021.03.27"]
[EventType "team-tourn"]
[EventCountry "NET"]
[SourceTitle "playchess.com"]
[Source "ChessBase"]
[SourceQuality "1"]
[TimeControl "900+5"]

1. c4 {[%emt 0:00:00]} c5 {[%emt 0:00:07]} 2. Nf3 {[%emt 0:00:22]} g6 {[%emt 0:00:03]} 3. d4 {[%emt 0:00:29]} Bg7 {[%emt 0:00:04]} 4. e4 {[%emt 0:00:11]} d6 {[%emt 0:00:05]} 5. d5 {[%emt 0:00:37]} e5 {[%emt 0:01:00]} 6. Nc3 {[%emt 0:00:42]} Ne7 {[%emt 0:00:13]} 7. h3 {[%emt 0:01:48]} O-O {[%emt 0:01:09]} 8. g4 {[%emt 0:00:07]} f5 {[%emt 0:01:25]} 9. Rg1 {[%emt 0:00:27]} fxe4 {[%emt 0:01:20]} 10. Ng5 {[%emt 0:00:56]} Na6 {[%emt 0:00:24]} 11. Ngxe4 {[%emt 0:00:14]} Nc7 {[%emt 0:00:11]} 12. Be3 {[%emt 0:00:37]} Rb8 {[%emt 0:02:39]} 13. Qd2 {[%emt 0:00:26]} a6 {[%emt 0:01:19]} 14. a4 {[%emt 0:00:03]} b5 {[%emt 0:00:55]} 15. axb5 {[%emt 0:00:15]} axb5 {[%emt 0:00:03]} 16. cxb5 {[%emt 0:00:01]} Bb7 {[%emt 0:00:18]} 17. Bc4 {[%emt 0:00:06]} Nc8 {[%emt 0:00:54]} 18. b3 {[%emt 0:01:32]} Nb6 {[%emt 0:01:12]} 19. Ra7 {[%emt 0:00:21]} Qd7 {[%emt 0:00:37]} 20. Kd1 {[%emt 0:00:48]} Nc8 {[%emt 0:00:09]} 21. Ra1 {[%emt 0:00:11]} Qf7 {[%emt 0:00:31]} 22. Kc2 {[%emt 0:00:09]} Rd8 {[%emt 0:00:35]} 23. Ng5 {[%emt 0:00:48]} Qf8 {[%emt 0:00:49]} 24. h4 {[%emt 0:00:16]} Nb6 {[%emt 0:00:30]} 25. Nge4 {[%emt 0:01:23]} Ra8 {[%emt 0:00:11]} 26. Na4 {[%emt 0:00:43]} Nxc4 {[%emt 0:00:18]} 27. bxc4 {[%emt 0:00:01]} Bc8 {[%emt 0:00:02]} 28. Qe2 {[%emt 0:00:21]} h6 {[%emt 0:00:07]} 29. Nb6 {[%emt 0:00:11]} Rxa1 {[%emt 0:00:03]} 30. Rxa1 {[%emt 0:00:01]} Bb7 {[%emt 0:00:12]} 31. Ra7 {[%emt 0:00:03]} 1-0

[Event "European Online Club-ch-C 2021"]
[Site "Online"]
[Date "2021.03.27"]
[Round "5.13"]
[White "Markoja, Boris"]
[Black "Wirig, Anthony"]
[Result "1/2-1/2"]
[ECO "E16"]
[WhiteElo "2439"]
[BlackElo "2500"]
[Annotator "ChessBase"]
[PlyCount "96"]
[EventDate "2021.03.27"]
[EventType "team-tourn"]
[EventCountry "NET"]
[SourceTitle "playchess.com"]
[Source "ChessBase"]
[SourceQuality "1"]
[TimeControl "900+5"]

1. d4 {[%emt 0:00:00]} Nf6 {[%emt 0:00:13]} 2. c4 {[%emt 0:00:03]} e6 {[%emt 0:00:11]} 3. g3 {[%emt 0:00:05]} Bb4+ {[%emt 0:00:04]} 4. Nd2 {[%emt 0:00:14]} d5 {[%emt 0:00:21]} 5. Ngf3 {[%emt 0:00:06]} O-O {[%emt 0:00:13]} 6. Bg2 {[%emt 0:00:02]} b6 {[%emt 0:00:55]} 7. O-O {[%emt 0:00:03]} Bb7 {[%emt 0:00:09]} 8. Ne5 {[%emt 0:00:11]} Nbd7 {[%emt 0:00:32]} 9. Qa4 {[%emt 0:00:17]} Bxd2 {[%emt 0:00:31]} 10. Bxd2 {[%emt 0:01:15]} Nxe5 {[%emt 0:00:12]} 11. dxe5 {[%emt 0:00:03]} Nd7 {[%emt 0:02:03]} 12. cxd5 {[%emt 0:02:35]} Bxd5 {[%emt 0:00:50]} 13. Bc3 {[%emt 0:03:39]} Nc5 {[%emt 0:00:40]} 14. Qd4 {[%emt 0:00:19]} Bxg2 {[%emt 0:00:25]} 15. Kxg2 {[%emt 0:00:29]} Qxd4 {[%emt 0:02:01]} 16. Bxd4 {[%emt 0:00:04]} Na6 {[%emt 0:00:02]} 17. Rfd1 {[%emt 0:00:35]} Rfd8 {[%emt 0:00:17]} 18. Bc3 {[%emt 0:00:20]} c5 {[%emt 0:00:19]} 19. a4 {[%emt 0:00:47]} Kf8 {[%emt 0:00:21]} 20. e4 {[%emt 0:00:17]} Ke7 {[%emt 0:00:29]} 21. Rd6 {[%emt 0:00:14]} Nc7 {[%emt 0:02:14]} 22. b4 {[%emt 0:01:38]} Rxd6 {[%emt 0:01:48]} 23. exd6+ {[%emt 0:00:02]} Kxd6 {[%emt 0:00:01]} 24. Rd1+ {[%emt 0:00:17]} Ke7 {[%emt 0:00:09]} 25. bxc5 {[%emt 0:00:03]} bxc5 {[%emt 0:00:07]} 26. Bxg7 {[%emt 0:00:07]} Na6 {[%emt 0:00:53]} 27. Be5 {[%emt 0:00:49]} Rc8 {[%emt 0:00:05]} 28. Bd6+ {[%emt 0:00:06]} Kf6 {[%emt 0:00:24]} 29. e5+ {[%emt 0:00:17]} Kg6 {[%emt 0:00:12]} 30. Rc1 {[%emt 0:00:10]} c4 {[%emt 0:00:04]} 31. f4 {[%emt 0:00:20]} Rc6 {[%emt 0:00:10]} 32. Kf3 {[%emt 0:00:09]} Nc7 {[%emt 0:00:03]} 33. Bxc7 {[%emt 0:00:11]} Rxc7 {[%emt 0:00:01]} 34. Rc3 {[%emt 0:00:01]} h5 {[%emt 0:00:20]} 35. Ke4 {[%emt 0:00:03]} Rc8 {[%emt 0:00:17]} 36. h3 {[%emt 0:00:27]} Rc7 {[%emt 0:00:03]} 37. Kd4 {[%emt 0:00:25]} Kf5 {[%emt 0:00:02]} 38. Ke3 {[%emt 0:00:25]} f6 {[%emt 0:00:14]} 39. exf6 {[%emt 0:00:06]} Kxf6 {[%emt 0:00:02]} 40. g4 {[%emt 0:00:04]} hxg4 {[%emt 0:00:05]} 41. hxg4 {[%emt 0:00:02]} e5 {[%emt 0:00:13]} 42. Ke4 {[%emt 0:00:26]} exf4 {[%emt 0:00:03]} 43. Kxf4 {[%emt 0:00:00]} Ke6 {[%emt 0:00:05]} 44. Ke4 {[%emt 0:00:05]} Rg7 {[%emt 0:00:07]} 45. Rxc4 {[%emt 0:00:06]} Rxg4+ {[%emt 0:00:02]} 46. Kd3 {[%emt 0:00:00]} Rxc4 {[%emt 0:00:07]} 47. Kxc4 {[%emt 0:00:02]} Kd6 {[%emt 0:00:01]} 48. Kb5 {[%emt 0:00:02]} Kc7 {[%emt 0:00:01]} 1/2-1/2

[Event "European Online Club-ch-C 2021"]
[Site "Online"]
[Date "2021.03.27"]
[Round "5.14"]
[White "Micottis, Dorian"]
[Black "Subelj, Jan"]
[Result "0-1"]
[ECO "B13"]
[WhiteElo "2223"]
[BlackElo "2418"]
[Annotator "NA"]
[PlyCount "106"]
[EventDate "2021.03.27"]
[EventType "team-tourn"]
[EventCountry "NET"]
[SourceTitle "playchess.com"]
[Source "ChessBase"]
[SourceQuality "1"]
[TimeControl "900+5"]

1. e4 {[%emt 0:00:00]} c6 {[%emt 0:00:12]} 2. d4 {[%emt 0:00:42]} d5 {[%emt 0:00:06]} 3. exd5 {[%emt 0:00:13]} cxd5 {[%emt 0:00:03]} 4. Bd3 {[%emt 0:00:06]} Nc6 {[%emt 0:00:02]} 5. c3 {[%emt 0:00:01]} Nf6 {[%emt 0:00:04]} 6. Bf4 {[%emt 0:00:18]} Bg4 {[%emt 0:01:07]} 7. Qb3 {[%emt 0:00:57]} e5 {[%emt 0:01:14]} 8. dxe5 {[%emt 0:01:26]} Nh5 {[%emt 0:00:06]} 9. Be3 {[%emt 0:01:33]} Nxe5 {[%emt 0:00:04]} 10. Bb5+ {[%emt 0:00:11]} Nc6 {[%emt 0:00:06]} 11. h3 {[%emt 0:01:38]} Be6 {[%emt 0:00:59]} 12. Qd1 {[%emt 0:00:04]} Nf6 {[%emt 0:00:22]} 13. Nf3 {[%emt 0:00:24]} a6 {[%emt 0:00:29]} 14. Be2 {[%emt 0:00:16]} Bd6 {[%emt 0:00:16]} 15. O-O {[%emt 0:00:12]} O-O {[%emt 0:00:07]} 16. Nbd2 {[%emt 0:00:12]} Nh5 {[%emt 0:03:09]} 17. Re1 {[%emt 0:02:54]} Nf4 {[%emt 0:00:03]} 18. Bf1 {[%emt 0:00:01]} Bf5 {[%emt 0:03:13]} 19. Nd4 {[%emt 0:01:11]} Nxd4 {[%emt 0:00:26]} 20. Bxd4 {[%emt 0:00:01]} Qg5 {[%emt 0:00:17]} 21. Kh1 {[%emt 0:02:46]} Nxh3 {[%emt 0:00:04]} 22. gxh3 {[%emt 0:00:01]} Qf4 {[%emt 0:00:02]} 23. Nf3 {[%emt 0:00:10]} Be4 {[%emt 0:00:03]} 24. Rxe4 {[%emt 0:00:58]} dxe4 {[%emt 0:00:03]} 25. Be3 {[%emt 0:00:43]} Qxf3+ {[%emt 0:00:03]} 26. Qxf3 {[%emt 0:00:01]} exf3 {[%emt 0:00:03]} 27. Bd3 {[%emt 0:00:03]} Rfe8 {[%emt 0:00:09]} 28. Bc4 {[%emt 0:00:08]} Re5 {[%emt 0:00:38]} 29. Rd1 {[%emt 0:00:03]} Bf8 {[%emt 0:00:09]} 30. Bd5 {[%emt 0:00:03]} Re7 {[%emt 0:01:00]} 31. Bxf3 {[%emt 0:00:04]} Rc8 {[%emt 0:00:08]} 32. Bd5 {[%emt 0:00:05]} Rd7 {[%emt 0:00:05]} 33. Bf3 {[%emt 0:00:14]} Rxd1+ {[%emt 0:00:03]} 34. Bxd1 {[%emt 0:00:01]} Bc5 {[%emt 0:00:02]} 35. Bf3 {[%emt 0:00:07]} Bxe3 {[%emt 0:00:03]} 36. fxe3 {[%emt 0:00:01]} Rc7 {[%emt 0:00:02]} 37. Bd5 {[%emt 0:00:02]} b6 {[%emt 0:00:02]} 38. Kg2 {[%emt 0:00:03]} a5 {[%emt 0:00:02]} 39. c4 {[%emt 0:00:03]} Kf8 {[%emt 0:00:01]} 40. a3 {[%emt 0:00:06]} Ke7 {[%emt 0:00:08]} 41. b4 {[%emt 0:00:01]} axb4 {[%emt 0:00:03]} 42. axb4 {[%emt 0:00:01]} Kd6 {[%emt 0:00:01]} 43. e4 {[%emt 0:00:10]} Ke5 {[%emt 0:00:02]} 44. Kf3 {[%emt 0:00:03]} f5 {[%emt 0:00:31]} 45. exf5 {[%emt 0:00:02]} b5 {[%emt 0:00:02]} 46. h4 {[%emt 0:00:25]} bxc4 {[%emt 0:00:03]} 47. Be4 {[%emt 0:00:01]} c3 {[%emt 0:00:02]} 48. Bc2 {[%emt 0:00:02]} h6 {[%emt 0:00:10]} 49. h5 {[%emt 0:00:07]} Rb7 {[%emt 0:00:02]} 50. Ke3 {[%emt 0:00:06]} Rxb4 {[%emt 0:00:02]} 51. Kd3 {[%emt 0:00:01]} Rh4 {[%emt 0:00:02]} 52. Bd1 {[%emt 0:00:03]} Rh3+ {[%emt 0:00:06]} 53. Kc2 {[%emt 0:00:02]} Kxf5 {[%emt 0:00:02]} 0-1

[Event "European Online Club-ch-C 2021"]
[Site "Online"]
[Date "2021.03.27"]
[Round "5.15"]
[White "Skuhala, Jernej"]
[Black "Bruch, Jochen"]
[Result "1-0"]
[ECO "B81"]
[WhiteElo "2351"]
[BlackElo "2187"]
[Annotator "NA"]
[PlyCount "63"]
[EventDate "2021.03.27"]
[EventType "team-tourn"]
[EventCountry "NET"]
[SourceTitle "playchess.com"]
[Source "ChessBase"]
[SourceQuality "1"]
[TimeControl "900+5"]

1. e4 {[%emt 0:00:02]} c5 {[%emt 0:02:00]} 2. Nf3 {[%emt 0:00:06]} e6 {[%emt 0:00:03]} 3. d4 {[%emt 0:00:02]} cxd4 {[%emt 0:00:03]} 4. Nxd4 {[%emt 0:00:17]} Nf6 {[%emt 0:00:04]} 5. Nc3 {[%emt 0:00:01]} d6 {[%emt 0:00:03]} 6. g4 {[%emt 0:00:08]} h6 {[%emt 0:00:02]} 7. Rg1 {[%emt 0:00:02]} Nc6 {[%emt 0:00:03]} 8. Be3 {[%emt 0:00:02]} Be7 {[%emt 0:00:04]} 9. f3 {[%emt 0:00:05]} a6 {[%emt 0:00:06]} 10. Qd2 {[%emt 0:00:03]} Qc7 {[%emt 0:00:06]} 11. O-O-O {[%emt 0:00:10]} Bd7 {[%emt 0:00:05]} 12. Kb1 {[%emt 0:00:05]} Ne5 {[%emt 0:00:19]} 13. h4 {[%emt 0:00:26]} Nc4 {[%emt 0:00:30]} 14. Bxc4 {[%emt 0:00:03]} Qxc4 {[%emt 0:00:03]} 15. g5 {[%emt 0:00:02]} hxg5 {[%emt 0:00:12]} 16. hxg5 {[%emt 0:00:03]} Nh5 {[%emt 0:00:03]} 17. Rh1 {[%emt 0:00:04]} g6 {[%emt 0:00:04]} 18. f4 {[%emt 0:00:34]} O-O-O {[%emt 0:00:28]} 19. f5 {[%emt 0:00:09]} Ng3 {[%emt 0:00:33]} 20. Rhg1 {[%emt 0:00:19]} Nh5 {[%emt 0:00:31]} 21. f6 {[%emt 0:00:24]} Bf8 {[%emt 0:00:05]} 22. Nb3 {[%emt 0:00:14]} Qc7 {[%emt 0:00:10]} 23. Qf2 {[%emt 0:00:17]} Re8 {[%emt 0:00:22]} 24. Bb6 {[%emt 0:00:03]} Qb8 {[%emt 0:00:03]} 25. Qd4 {[%emt 0:00:04]} Bc6 {[%emt 0:00:04]} 26. Na5 {[%emt 0:00:04]} Nf4 {[%emt 0:00:30]} 27. Nc4 {[%emt 0:00:43]} d5 {[%emt 0:03:55]} 28. Ba5 {[%emt 0:00:13]} Bc5 {[%emt 0:00:58]} 29. Qxc5 {[%emt 0:00:07]} dxc4 {[%emt 0:00:03]} 30. Na4 {[%emt 0:00:02]} Ne2 {[%emt 0:00:53]} 31. Nb6+ {[%emt 0:00:30]} Kc7 {[%emt 0:00:04]} 32. Rd7# {[%emt 0:00:03]} 1-0

[Event "European Online Club-ch-C 2021"]
[Site "Online"]
[Date "2021.03.27"]
[Round "5.16"]
[White "Kirsch, Laurent"]
[Black "Marn, Jan"]
[Result "0-1"]
[ECO "A84"]
[WhiteElo "2120"]
[BlackElo "2346"]
[Annotator "NA"]
[PlyCount "68"]
[EventDate "2021.03.27"]
[EventType "team-tourn"]
[EventCountry "NET"]
[SourceTitle "playchess.com"]
[Source "ChessBase"]
[SourceQuality "1"]
[TimeControl "900+5"]

1. d4 {[%emt 0:00:00]} d5 {[%emt 0:00:02]} 2. c4 {[%emt 0:00:03]} e6 {[%emt 0:00:02]} 3. Nc3 {[%emt 0:00:02]} c6 {[%emt 0:00:02]} 4. e3 {[%emt 0:00:03]} Bd6 {[%emt 0:00:11]} 5. Bd3 {[%emt 0:00:19]} f5 {[%emt 0:00:03]} 6. Nge2 {[%emt 0:00:03]} Nf6 {[%emt 0:00:04]} 7. f3 {[%emt 0:00:03]} O-O {[%emt 0:00:13]} 8. O-O {[%emt 0:00:04]} Nbd7 {[%emt 0:00:22]} 9. Bd2 {[%emt 0:00:08]} b6 {[%emt 0:01:44]} 10. cxd5 {[%emt 0:00:54]} Nxd5 {[%emt 0:02:45]} 11. e4 {[%emt 0:00:57]} fxe4 {[%emt 0:00:30]} 12. fxe4 {[%emt 0:00:37]} Nxc3 {[%emt 0:00:35]} 13. Nxc3 {[%emt 0:00:18]} e5 {[%emt 0:00:39]} 14. Bc4+ {[%emt 0:01:41]} Kh8 {[%emt 0:00:08]} 15. d5 {[%emt 0:00:26]} Bb7 {[%emt 0:02:44]} 16. dxc6 {[%emt 0:02:03]} Bxc6 {[%emt 0:00:05]} 17. Bd5 {[%emt 0:00:08]} Bxd5 {[%emt 0:00:26]} 18. Nxd5 {[%emt 0:00:04]} Nc5 {[%emt 0:00:04]} 19. Qg4 {[%emt 0:00:21]} Qd7 {[%emt 0:00:45]} 20. Qh4 {[%emt 0:00:28]} Nd3 {[%emt 0:01:11]} 21. b4 {[%emt 0:00:58]} Nxb4 {[%emt 0:00:36]} 22. Bxb4 {[%emt 0:01:35]} Bxb4 {[%emt 0:00:04]} 23. Rad1 {[%emt 0:01:09]} Bc5+ {[%emt 0:00:49]} 24. Kh1 {[%emt 0:00:05]} Qb5 {[%emt 0:00:06]} 25. Rxf8+ {[%emt 0:01:03]} Rxf8 {[%emt 0:00:14]} 26. Qe1 {[%emt 0:00:44]} h6 {[%emt 0:00:17]} 27. h3 {[%emt 0:01:02]} Rf2 {[%emt 0:00:11]} 28. Qc3 {[%emt 0:00:45]} Rf1+ {[%emt 0:00:32]} 29. Rxf1 {[%emt 0:00:03]} Qxf1+ {[%emt 0:00:00]} 30. Kh2 {[%emt 0:00:01]} Bg1+ {[%emt 0:01:06]} 31. Kg3 {[%emt 0:00:04]} Qf2+ {[%emt 0:00:01]} 32. Kg4 {[%emt 0:00:12]} Qxg2+ {[%emt 0:00:02]} 33. Kf5 {[%emt 0:00:06]} Bd4 {[%emt 0:00:17]} 34. Qc8+ {[%emt 0:00:56]} Kh7 {[%emt 0:00:03]} 0-1